Cogmind - Beta 13 @@@ ROGUE MODE // 2024.07.22 @ 14:33:05 Player: Wherf Result: Destroyed by H-66 Slayer with Gauss Rifle Performance ------------- Evolutions (4) 2000 Regions Visited (8) 1600 Robots Destroyed (33) 165 Value Destroyed (1177) 1177 Prototype IDs (2) 40 Alien Tech Used (0) 0 Bonus (700) 700 TOTAL SCORE: 5682 Bonus ------- Entered Garrisons 200 Entered DSFs 500 Cogmind --------- Core Integrity 0/850 Matter 175/450 Energy 99/100 System Corruption 4% Temperature Cool (0) Movement Core (50) Location -6/Garrison Parts ------- > --- POWER (3) -------- (None) > --- PROPULSION (6) --- (None) > --- UTILITY (4) ------ Compact Matter Pod > --- WEAPON (2) ------- (None) > --- INVENTORY (5) ---- Light Nuclear Core Light Nuclear Core Relay Coupler [Sentry] (19) Peak State ------------ > --- POWER ------------ Light Nuclear Core > --- PROPULSION ------- Surge Thruster Surge Thruster Surge Thruster Surge Thruster Surge Thruster Xenon Bombardment Thruster > --- UTILITY ---------- Small Storage Unit Advanced Visual Processing Unit Reaction Control System Improved Reaction Control System > --- WEAPON ----------- Mini Assault Cannon Mini Assault Cannon > --- INVENTORY -------- Light Nuclear Core Light Nuclear Core Surge Thruster Compact Matter Pod Matter Filter Kinecellerator Mini Assault Cannon Mini Assault Cannon [Rating: 47] Favorites ----------- Power Light Nuclear Core Engine Ion Engine Power Core Light Nuclear Core Propulsion Flight Unit Wheel Wheel Flight Unit Flight Unit Utility Small Storage Unit Device Improved Heat Sink Storage Small Storage Unit Processor Advanced Visual Processing Unit Weapon Mini Assault Cannon Energy Gun Small Laser Ballistic Gun Light Assault Rifle Ballistic Cannon Mini Assault Cannon Launcher Grenade Launcher Build | -11 -10 -10 -9 -8 -7 -6 -6 -6 ------- Run | Yrd Mat Min Mat Mat Fac Fac DSF Gar Slots Evolved 8 | . . . 2 2 2 2 . . Power 2 | . . . . 1 1 . . . Propulsion 4 | . . . 2 . 1 1 . . Utility 2 | . . . . 1 . 1 . . Weapon . | . . . . . . . . . Parts Attached 58 | 7 1 10 4 10 5 1 14 6 Power 6 | 1 . 1 . 1 1 . 2 . Engine 2 | 1 . 1 . . . . . . Core 4 | . . . . 1 1 . 2 . Reactor . | . . . . . . . . . Propulsion 26 | 3 . 5 2 2 3 1 8 2 Treads . | . . . . . . . . . Leg . | . . . . . . . . . Wheel 7 | 3 . 3 . . . . 1 . Hover . | . . . . . . . . . Flight 19 | . . 2 2 2 3 1 7 2 Utility 13 | 1 1 1 1 3 . . 4 2 Device 8 | . 1 1 1 2 . . 2 1 Storage 2 | 1 . . . . . . . 1 Processor 3 | . . . . 1 . . 2 . Hackware . | . . . . . . . . . Protection . | . . . . . . . . . Artifact . | . . . . . . . . . Weapon 13 | 2 . 3 1 4 1 . . 2 Energy Gun 5 | 2 . 1 . 2 . . . . Energy Cannon . | . . . . . . . . . Ballistic Gun 1 | . . . 1 . . . . . Ballistic Cannon 5 | . . . . 2 1 . . 2 Launcher 2 | . . 2 . . . . . . Special Weapon . | . . . . . . . . . Impact Weapon . | . . . . . . . . . Slashing Weapon . | . . . . . . . . . Piercing Weapon . | . . . . . . . . . Special Melee Weapon . | . . . . . . . . . Unidentified Prototypes 2 | . . . . 2 . . . . Parts Lost 32 | . . 10 . 1 . 2 8 11 Power 4 | . . 1 . . . . 2 1 Propulsion 18 | . . 4 . 1 . 1 4 8 Utility 6 | . . 1 . . . 1 2 2 Weapon 4 | . . 4 . . . . . . Highest Loss Streak 10 | . . 8 . 1 . 2 10 9 To Critical Strikes . | . . . . . . . . . Average Slot Usage (%) 76 | . 91 72 48 81 88 86 62 68 Engine 3 | . 14 7 . . . . . . Core 4 | . . . . 3 11 13 5 5 Wheel 5 | . 28 11 . . . . 2 . Flight 24 | . . 10 26 35 38 40 22 31 Device 8 | . 5 8 . 12 15 13 3 6 Storage 9 | . 14 14 11 9 7 6 6 5 Processor 3 | . . . . 5 . . 7 5 Energy Gun 5 | . 28 10 . 1 . . . . Ballistic Gun 1 | . . . . 5 . . . . Ballistic Cannon 6 | . . . . 4 14 13 13 11 Launcher 3 | . . 8 11 4 . . . . Naked Turns 5 | . . . . . . . . 5 Heaviest Build 25 | 12 13 17 10 20 25 25 24 20 Greatest Support 29 | 26 20 20 16 17 25 29 25 21 Greatest Overweight (x) 4 | . . 1 . 1 . . 4 . Average Overweight (x) . | . . . . . . . . . Largest Inventory Capacity 8 | 8 8 8 8 8 8 8 8 8 Average Capacity 7 | 7 8 8 8 8 8 8 8 7 Most Carried 8 | 4 8 8 8 8 8 7 8 8 Average Carried 6 | 1 5 3 5 7 7 7 6 6 Final Capacity 8 | 8 8 8 8 8 8 8 8 5 Final Carried 8 | 4 8 4 7 8 8 7 8 3 Class Distribution -------------------- 43% | Scavenger-Sprinter 42% | Mutant 9% | Sprinter 5% | Scavenger-Mutant Dominant Class ---------------- Mutant | -10/Materials Mutant | -10/Mines Mutant | -9/Materials Scavenger-Sprinter | -8/Materials Sprinter | -7/Factory Scavenger-Sprinter | -6/Factory Mutant | -6/DSF Scavenger-Sprinter | -6/Garrison Resources | -11 -10 -10 -9 -8 -7 -6 -6 -6 ----------- Run | Yrd Mat Min Mat Mat Fac Fac DSF Gar Matter Collected 1527 | 270 75 275 7 213 70 . 480 137 Remotely 100 | . 75 25 . . . . . . Salvage Created 875 | 148 120 146 25 145 . . 191 100 Parts 46 | 7 7 5 7 5 . . 12 3 Haulers Intercepted . | . . . . . . . . . Recyclers Shooed 1 | . . 1 . . . . . . Parts Field Recycled . | . . . . . . . . . Retrieved Matter . | . . . . . . . . . Parts Self-Destructed . | . . . . . . . . . Prevented . | . . . . . . . . . Kills | -11 -10 -10 -9 -8 -7 -6 -6 -6 ------- Run | Yrd Mat Min Mat Mat Fac Fac DSF Gar Combat Hostiles Destroyed 27 | . 3 4 4 5 . . 7 4 Guns 4 | . 3 . . 1 . . . . Cannons 13 | . . . . 2 . . 7 4 AOE 9 | . . 3 4 2 . . . . Classes Destroyed 11 | 2 1 1 1 2 . . 3 1 Worker 1 | . . . 1 . . . . . Tunneler 3 | 3 . . . . . . . . Recycler 2 | 1 1 . . . . . . . Swarmer 8 | . 3 . 4 1 . . . . Cutter 2 | . . . . . . . 2 . Grunt 11 | . . 4 . 2 . . 3 2 Brawler 1 | . . . . . . . . 1 Duelist 2 | . . . . 1 . . . 1 Sentry 1 | . . . . 1 . . . . Specialist 1 | . . . . . . . 1 . Heavy 1 | . . . . . . . 1 . Best Kill Streak 6 | 4 4 2 5 3 . . 6 2 Combat Bots Only 6 | . 3 2 4 3 . . 6 2 Max Kills in Single Turn 3 | 1 1 1 3 2 . . 1 1 Gunslinging . | . . . . . . . . . Exploded 3 | . . 1 3 2 . . . . Melee . | . . . . . . . . . Uniques/NPCs Destroyed . | . . . . . . . . . Combat | -11 -10 -10 -9 -8 -7 -6 -6 -6 -------- Run | Yrd Mat Min Mat Mat Fac Fac DSF Gar Hostile Shots Fired 251 | . 15 55 9 14 . 2 40 116 Missed 87 | . 1 12 6 7 . . 7 54 Damage Taken 3024 | . 118 621 35 105 . 102 941 1102 Core 1086 | . 28 154 7 30 . . 471 396 Absorbed by Shields 83 | . . . . . . . . 83 Core Remaining (%) 83 | 100 . 27 98 94 100 . . . Volleys Fired 98 | 5 7 22 2 10 . . 22 30 Largest 2 | 2 2 2 1 2 . . 2 2 Hottest 96 | 80 80 95 30 96 . . 96 96 Shots Fired 182 | 10 14 33 2 20 . . 42 61 Gun 57 | 10 14 25 . 8 . . . . Cannon 113 | . . . . 10 . . 42 61 Launcher 12 | . . 8 2 2 . . . . Special . | . . . . . . . . . Kinetic 118 | . . . . 15 . . 42 61 Thermal 52 | 10 14 25 . 3 . . . . Explosive 12 | . . 8 2 2 . . . . Electromagnetic . | . . . . . . . . . Robot Hit Streak 18 | 3 3 7 . 10 . . 15 18 Robot Miss Streak 3 | 1 3 3 . 2 . . 2 3 Penetration Max . | . . . . . . . . . Secondary Targets 1 | . 1 . . . . . . . Max Gunslinging Chain 1 | . 1 . . . . . . . Shots Hit Robots 119 | 6 7 23 . 13 . . 34 36 Core Hits 56 | 5 5 9 7 8 . . 12 10 Critical Kills . | . . . . . . . . . Critical Parts Destroyed . | . . . . . . . . . Critical Strikes 6 | . . . . 1 . . 1 4 Blast 6 | . . . . 1 . . 1 4 Melee Attacks . | . . . . . . . . . Impact . | . . . . . . . . . Slashing . | . . . . . . . . . Piercing . | . . . . . . . . . Sneak Attacks . | . . . . . . . . . Combat Hostiles . | . . . . . . . . . Follow-up Attacks . | . . . . . . . . . Damage Inflicted 3372 | 64 98 582 303 348 . . 931 1046 Guns 449 | 64 98 214 . 73 . . . . Cannons 2151 | . . . . 174 . . 931 1046 Explosions 772 | . . 368 303 101 . . . . Melee . | . . . . . . . . . Ramming . | . . . . . . . . . Kinetic 2174 | . . . . 197 . . 931 1046 Thermal 426 | 64 98 214 . 50 . . . . Explosive 772 | . . 368 303 101 . . . . Electromagnetic . | . . . . . . . . . Impact . | . . . . . . . . . Slashing . | . . . . . . . . . Piercing . | . . . . . . . . . Highest Corruption 4 | . . . . . . . 4 4 Average Corruption 4 | . . . . . . . 4 4 Corruption Purged . | . . . . . . . . . Corruption Blocked . | . . . . . . . . . Effects 10 | . . . . . . . 4 6 Message Errors 2 | . . . . . . . 1 1 Matter Fused 2 | . . . . . . . 1 1 Heat Flow Errors 1 | . . . . . . . . 1 Energy Discharges 1 | . . . . . . . . 1 Data Loss (minor) 1 | . . . . . . . . 1 Misfires 1 | . . . . . . . . 1 Weapon Failures 2 | . . . . . . . 2 . Overload Shots . | . . . . . . . . . Overflow Damage 48 | . . 16 . . . . . 32 Projectiles 32 | . . . . . . . . 32 Explosions 16 | . . 16 . . . . . . Melee . | . . . . . . . . . Knockbacks 17 | . . . . . . . 7 10 Impact . | . . . . . . . . . Kinetic 15 | . . . . . . . 6 9 Secondary 2 | . . . . . . . 1 1 Self-Inflicted Damage 8 | . . 8 . . . . . . Shots 1 | . . 1 . . . . . . Rammed . | . . . . . . . . . Targets Rammed . | . . . . . . . . . Kicked . | . . . . . . . . . Crushed . | . . . . . . . . . Highest Temperature 333 | 36 108 230 . 12 119 219 15 333 Average Temperature 91 | 15 50 118 . 7 49 104 6 111 Received Heat Transfer 857 | . . 381 . 72 . . 243 161 Siege Activations . | . . . . . . . . . Robots Corrupted . | . . . . . . . . . Combat Hostiles . | . . . . . . . . . Parts Fried . | . . . . . . . . . Impact Corruptions . | . . . . . . . . . Robots Melted 1 | . . 1 . . . . . . Combat Hostiles 1 | . . 1 . . . . . . Parts Melted 1 | . 1 . . . . . . . Heat Transferred 972 | 150 225 486 . 111 . . . . Parts Sabotaged . | . . . . . . . . . Parts Stolen . | . . . . . . . . . Parts Stripped . | . . . . . . . . . Power Chain Reactions . | . . . . . . . . . Alert | -11 -10 -10 -9 -8 -7 -6 -6 -6 ------- Run | Yrd Mat Min Mat Mat Fac Fac DSF Gar Peak Influence 358 | 20 113 104 180 296 174 99 183 358 Initial 137 | . 13 43 39 76 134 84 58 137 Average 123 | 6 61 71 95 132 150 87 128 227 Maximum Alert Level 1 | . . . . 1 . . . 1 Low Security (%) 85 | 100 100 100 100 83 100 100 100 36 Level 1 14 | . . . . 16 . . . 63 Level 2 . | . . . . . . . . . Level 3 . | . . . . . . . . . Level 4 . | . . . . . . . . . Level 5 . | . . . . . . . . . High Security . | . . . . . . . . . Max Security . | . . . . . . . . . Squads Dispatched 5 | . 1 . . . . 2 2 . Investigation 1 | . . . . . . 1 . . Extermination . | . . . . . . . . . Reinforcement 4 | . 1 . . . . 1 2 . Assault . | . . . . . . . . . Garrison . | . . . . . . . . . Intercept . | . . . . . . . . . Searches Triggered . | . . . . . . . . . Construction Impeded . | . . . . . . . . . Haulers Reinforced . | . . . . . . . . . Active Scanning Responses . | . . . . . . . . . Cargo Convoy Interrupts . | . . . . . . . . . Stealth | -11 -10 -10 -9 -8 -7 -6 -6 -6 --------- Run | Yrd Mat Min Mat Mat Fac Fac DSF Gar Distress Signals 2 | . . . 1 1 . . . . Communications Jammed 13 | . . . . 12 1 . . . Distress Signals 13 | . . . . 12 1 . . . Times Spotted 71 | . 6 6 6 11 1 1 9 31 Peak Tracking Total 14 | . 4 3 5 4 1 1 4 14 Tactical Retreats 7 | . . 1 . . . . 1 5 Traps | -11 -10 -10 -9 -8 -7 -6 -6 -6 ------- Run | Yrd Mat Min Mat Mat Fac Fac DSF Gar Traps Triggered 5 | . . . . . 2 . . 3 Indirectly . | . . . . . . . . . Trap Hack Attempts . | . . . . . . . . . Triggered . | . . . . . . . . . Disarmed . | . . . . . . . . . Reprogrammed . | . . . . . . . . . Reused . | . . . . . . . . . Traps Extracted . | . . . . . . . . . Installed . | . . . . . . . . . Triggered . | . . . . . . . . . Machines | -11 -10 -10 -9 -8 -7 -6 -6 -6 ---------- Run | Yrd Mat Min Mat Mat Fac Fac DSF Gar Machines Disabled 2 | . . . . . . . 1 1 Max in Single Turn 1 | . . . . . . . 1 1 Garrison Relay 1 | . . . . . . . . 1 Machines Repaired . | . . . . . . . . . Machines Dismantled . | . . . . . . . . . Machines Sabotaged . | . . . . . . . . . Overloaded Fab Kills . | . . . . . . . . . Hacking | -11 -10 -10 -9 -8 -7 -6 -6 -6 --------- Run | Yrd Mat Min Mat Mat Fac Fac DSF Gar Machines Accessed 16 | . 2 . 3 5 4 2 . . Terminals 12 | . 1 . 3 4 2 2 . . Fabricators . | . . . . . . . . . Repair Stations . | . . . . . . . . . Recycling Units 1 | . 1 . . . . . . . Scanalyzers 3 | . . . . 1 2 . . . Garrison Access . | . . . . . . . . . Total Hacks 34 | . 4 . 4 13 8 5 . . Successful 19 | . 3 . 2 8 5 1 . . Failed 15 | . 1 . 2 5 3 4 . . Catastrophic 4 | . . . 1 2 . 1 . . Database Lockouts . | . . . . . . . . . Manual 23 | . 2 . 4 9 4 4 . . Terminals 28 | . 3 . 4 11 5 5 . . Fabricators . | . . . . . . . . . Repair Stations . | . . . . . . . . . Recycling Units 1 | . 1 . . . . . . . Scanalyzers 5 | . . . . 2 3 . . . Garrison Access . | . . . . . . . . . Terminal Hacks 5 | . 1 . . 2 1 1 . . Open DSF 1 | . . . . . . 1 . . Branch Access Points 1 | . . . . . 1 . . . Emergency Access Points 1 | . . . . 1 . . . . Locate Traps 1 | . . . . 1 . . . . Zone Layout 1 | . 1 . . . . . . . Fabricator Hacks . | . . . . . . . . . Repair Station Hacks . | . . . . . . . . . Recycling Unit Hacks . | . . . . . . . . . Scanalyzer 4 | . . . . 2 2 . . . Insert Component 2 | . . . . 1 1 . . . Analyze 2 | . . . . 1 1 . . . Garrison Access Hacks . | . . . . . . . . . Unauthorized Hacks 10 | . 2 . 2 4 2 . . . Terminals 9 | . 1 . 2 4 2 . . . Botnet 9 | . 1 . 2 4 2 . . . Fabricators . | . . . . . . . . . Repair Stations . | . . . . . . . . . Recycling Units 1 | . 1 . . . . . . . Reject 1 | . 1 . . . . . . . Scanalyzers . | . . . . . . . . . Garrison Access . | . . . . . . . . . Data Cores Recovered . | . . . . . . . . . Used . | . . . . . . . . . Hacking Detections 15 | . 1 . 3 5 4 2 . . Full Trace Events 1 | . . . . . . 1 . . Feedback Events . | . . . . . . . . . Feedback Blocked . | . . . . . . . . . Robot Schematics Acquired . | . . . . . . . . . Robots Built . | . . . . . . . . . Authchips . | . . . . . . . . . Time . | . . . . . . . . . Total Robot Build Rating . | . . . . . . . . . Part Schematics Acquired 2 | . . . . 1 1 . . . Parts Built . | . . . . . . . . . Authchips . | . . . . . . . . . Time . | . . . . . . . . . Total Part Build Rating . | . . . . . . . . . Parts Repaired . | . . . . . . . . . Time . | . . . . . . . . . Parts Recycled . | . . . . . . . . . Recycled Matter . | . . . . . . . . . Retrieved Matter . | . . . . . . . . . Retrieved Components . | . . . . . . . . . Parts Scanalyzed 2 | . . . . 1 1 . . . Part Schematics Acquired 2 | . . . . 1 1 . . . Parts Damaged . | . . . . . . . . . Bothacking | -11 -10 -10 -9 -8 -7 -6 -6 -6 ------------ Run | Yrd Mat Min Mat Mat Fac Fac DSF Gar Used RIF Installer . | . . . . . . . . . Robots Hacked . | . . . . . . . . . Non-combat . | . . . . . . . . . Combat . | . . . . . . . . . Robot Hacks Applied . | . . . . . . . . . Relay Couplers Released 3 | . . . . . . . . 3 Machine Destruction 3 | . . . . . . . . 3 Fabnet Peak Effective % . | . . . . . . . . . Robots Rewired . | . . . . . . . . . Allies Hacked . | . . . . . . . . . Hacks Repelled . | . . . . . . . . . Allies | -11 -10 -10 -9 -8 -7 -6 -6 -6 -------- Run | Yrd Mat Min Mat Mat Fac Fac DSF Gar Total Allies . | . . . . . . . . . Largest Group . | . . . . . . . . . Highest-Rated Group . | . . . . . . . . . Highest-Rated Ally . | . . . . . . . . . Total Orders . | . . . . . . . . . Ally Attacks . | . . . . . . . . . Total Damage . | . . . . . . . . . Kills . | . . . . . . . . . Allies Corrupted . | . . . . . . . . . Allies Melted . | . . . . . . . . . Intel | -11 -10 -10 -9 -8 -7 -6 -6 -6 ------- Run | Yrd Mat Min Mat Mat Fac Fac DSF Gar Robot Analysis Total . | . . . . . . . . . Derelict Logs Recovered 1 | . . 1 . . . . . . Drone Launches . | . . . . . . . . . Drone Recoveries . | . . . . . . . . . Exploration | -11 -10 -10 -9 -8 -7 -6 -6 -6 ------------- Run | Yrd Mat Min Mat Mat Fac Fac DSF Gar Turns Passed 1568 | 80 152 298 54 364 182 27 138 273 Spaces Moved 1663 | 57 151 241 111 385 260 104 97 257 Core 25 | 1 . . . . . . 1 23 Treads . | . . . . . . . . . Legs . | . . . . . . . . . Wheels 335 | 56 151 119 . . . . 9 . Hover . | . . . . . . . . . Flight 1303 | . . 122 111 385 260 104 87 234 Fastest Speed 20 | 50 80 37 31 29 27 24 20 20 Average Speed 41 | 87 80 67 36 31 27 24 44 24 Slowest Speed 250 | 90 80 115 37 112 27 27 250 50 Overloaded Moves . | . . . . . . . . . Propulsion Burnouts . | . . . . . . . . . Robots Hopped 3 | . . . . 3 . . . . Cave-ins Triggered . | . . . . . . . . . Exploration Rate (%) 29 | 4 28 39 18 53 9 4 87 27 Regions Visited 8 Branch Regions 1 Pre-discovered Areas . | . . . . . . . . . Known Exits Taken 1 | . . . . . . 1 . . Unknown Exits Taken 6 | 1 1 1 1 1 1 . . . Scrap Searched 1 | . . 1 . . . . . . Spaces Dug . | . . . . . . . . . Terrain Destroyed 86 | . . 57 14 15 . . . . Melee . | . . . . . . . . . Projectile 4 | . . . . 4 . . . . AOE 82 | . . 57 14 11 . . . . Terrain Rammed . | . . . . . . . . . Walls Destroyed . | . . . . . . . . . Machines Disabled . | . . . . . . . . . Actions | -11 -10 -10 -9 -8 -7 -6 -6 -6 --------- Run | Yrd Mat Min Mat Mat Fac Fac DSF Gar Total 2337 | 73 167 342 120 608 371 105 143 408 Wait 411 | 1 5 63 . 184 81 1 2 74 Move 1649 | 56 150 240 110 379 259 103 96 256 Hop 2 | . . . . 2 . . . . Pick Up 32 | 4 4 3 4 9 4 . 3 1 Fast Attach 33 | 6 1 3 3 6 1 . 12 1 Attach 18 | . . 7 1 1 2 1 1 5 Detach 2 | . . 1 . 1 . . . . Swap 7 | 1 . . . 3 2 . 1 . Drop 29 | . . 3 . 13 4 . 6 3 Fire 98 | 5 7 22 2 10 . . 22 30 Melee . | . . . . . . . . . Ram . | . . . . . . . . . Kick . | . . . . . . . . . Crush . | . . . . . . . . . Escape Stasis 56 | . . . . . 18 . . 38 Rewire . | . . . . . . . . . Trap . | . . . . . . . . . Miscellaneous . | . . . . . . . . . Route ------- -11/Scrapyard -10/Materials -10/Mines (discovered 2 exits: *Mat / Sub) -9/Materials -8/Materials -7/Factory (discovered 4 exits: *Fac / Sto / Low x2) -6/Factory -6/DSF -6/Garrison (discovered 1 exit: [*Fac]) History --------- Turn | Location | Event 10 | -11/Scrapyard | Discovered new exit (range 16) 81 | -11/Scrapyard | Entered Materials 189 | -10/Materials | Discovered new exit (range 16) 233 | -10/Materials | Entered Mines 308 | -10/Mines | Core integrity fell below 50% 350 | -10/Mines | Lost 8 parts (1p4n1u2w) 352 | -10/Mines | Build established: Mutant 444 | -10/Mines | Identified exit to Subcaves 446 | -10/Mines | YI-UF0 nonchalantly dropped a Grenade Launcher on the ground 522 | -10/Mines | Discovered new exit (range 9) 531 | -10/Mines | Entered Materials 531 | -9/Materials | Evolved 2 slots: Propulsion x2 577 | -9/Materials | Discovered new exit (range 8) 585 | -9/Materials | Entered another Materials area 585 | -8/Materials | Evolved 2 slots: Power x1, Utility x1 873 | -8/Materials | Build established: Scavenger-Sprinter 945 | -8/Materials | Discovered new exit (range 5) 949 | -8/Materials | Entered Factory 949 | -7/Factory | Evolved 2 slots: Power x1, Propulsion x1 1110 | -7/Factory | Identified exit to Storage 1110 | -7/Factory | Identified exit to Lower Caves 1129 | -7/Factory | Discovered new exit (range 6) 1131 | -7/Factory | Entered another Factory area 1131 | -6/Factory | Evolved 2 slots: Propulsion x1, Utility x1 1158 | -6/Factory | Identified exit to DSF 1158 | -6/Factory | Entered DSF 1183 | -6/DSF | Additional patrols routed to DSF 1236 | -6/DSF | Core integrity fell below 50% 1264 | -6/DSF | Lost 10 parts (2p5n3u) 1292 | -6/DSF | Discovered new exit (range 15) 1296 | -6/DSF | Entered Garrison 1356 | -6/Garrison | Spotted B-75 Beast 1364 | -6/Garrison | Triggered checkpoint 1395 | -6/Garrison | Garrison Relay disabled 1435 | -6/Garrison | Triggered checkpoint 1462 | -6/Garrison | Triggered checkpoint 1468 | -6/Garrison | Triggered checkpoint 1478 | -6/Garrison | Discovered new exit (range 12) 1481 | -6/Garrison | Attempted to access garrison exit controls, blocked by remote lockdown 1552 | -6/Garrison | Released all parts (4) 1559 | -6/Garrison | Core integrity fell below 20% 1569 | -6/Garrison | Destroyed by H-66 Slayer with Gauss Rifle Last Messages --------------- 01531_ Destroyed Microactuators. 01531_ L-41 Fighter destroyed. 01534_ G-50 Soldier Lgt. Angular Momentum Engine blasted off. 01537_ Sml. Storage Unit destroyed. 01539_ Surge Thruster destroyed. 01541_ Lgt. Nuclear Core destroyed. 01546_ Destroyed Hvy. Laser. 01546_ G-50 Soldier knocked back. 01552_ Released Adv. Visual Processing Unit. 01552_ Released Kinecellerator. 01552_ Released Mni. Assault Cannon. 01552_ Acquired 4 matter. 01554_ Acquired 3 matter. 01554_ S-27 Virus destroyed. 01556_ Acquired 24 matter. 01557_ Acquired VTOL Module. 01562_ System corrupted: Component data lost. 01562_ VTOL Module destroyed. 01569_ Penetrated by Slug. Map ----- +----------------------------------------------------+ | ????????????????????????????????# #??# #???? | | ????????????????????????????????# #??###### #???? | | ????????????????????????????????# ^#???????# #???? | | ?????????????????????############ #???????#!###?? | | ?????????????????????# #???????# #?? | | ?????????????????????# #???????# *=#?? | | ?????????????????????+ ######### #???????# = #?? | | ?????????????????????# #???????# #???????# [#?? | | ?????????????????????# #???????# ######### ###?? | | ?????????????????????# #???????# ^#???? | | ???????????????#####?# #???????# ###########???? | | ???????????????# ## #???#???# #?????????????? | | ?????#######++## ## *##? #???# #?????????????? | | ??? % %=##"##### #?????????????? | | ??? [ #?????????????? | | ??? % #?????????????? | | ?????###### ## ## %=###########?????????????? | | ??????????# ## ## "###?????????????????????? | | ??????????" #?????????????????????? | | ??????????" BB #?????????????????????? | | ??????????" B #?????????????????????? | | ??????????" #?????????????????????? | | ??????????# ## ] ##h ###?????????????????????? | | ??????????# ## ]## ############????????????? | | ??????????# h #????????????? | | ??????????# @ #????????????? | | ??????????# #????????????? | | ??????????## ## ############# #????????????? | | ???????????# ?# #???????????# #????????????? | | ???????????# ??######???????????# #????????????? | | ???????????#????????????????????# #????????????? | | ????????????????????????????????# #????????????? | | ????????????????????????????????# ###########??? | | ????????????????????????????????# + | | ????????????????????????????????+ ###########??? | | ????????????????????????????????+ #????????????? | | ????????????????????????????????# #????????????? | | ????????????????????????????????# #????????????? | | ????????????????????????????????# #????????????? | | ????????????????????????????????# #????????????? | | ????????????????????????????????# ###########??? | | ????????????????????????????????# + | | ????????????????????????????? + +[ ###########??? | | ????????????????????????????" ### #????????????? | | ????????????????????????????????# #????????????? | | ????????????????????????????????# #????????????? | | ????????????????????????????????# #????????????? | | ????????????????????????????????# #????????????? | | ????????????????????????????????# ]#############? | | ????????????????????????????????# %! ^%%] % * | +----------------------------------------------------+ Best States ------------- Heat Dissipation 45 Energy Generation 23 Energy Capacity 250 Matter Stores 300 Matter Capacity 300 Sight Range 20 Terrain Scan Density 110 Jamming Range 12 Evasion (%) 75 Targeting Accuracy 5 Recoil Reduction 4 Kinecelleration 30 Item Schematics ----------------- Flight Unit | -8/Materials | Scanalyzed Kinecellerator | -7/Factory | Scanalyzed Robot Schematics ------------------ None Fabricated ------------ Nothing Alien Tech Used ----------------- None Achievements -------------- No Signal Challenges ------------ None Game ------ Seed ThrusterThiefTorch Manual? 0 Play Time 00:41:31 Cumulative 33.0 hours Start 2024.07.19 @ 12:02:31 End 2024.07.22 @ 14:33:05 Sessions 3 Manual Loads 0 Difficulty Rogue Special Mode None Game No. 31 Rogue 31 Adventurer 0 Explorer 0 Win Type - Total 0 Types 0/0/0/0/0/0/0/0/0 Lore% 18 Gallery% 36 Achievement% 26 Wizard Run 0 Options --------- Layout 1 ASCII 0 Keyboard 0 Movement Mouse Keybinds 0 Fullscreen 1 Font 24/Smallcaps Map View 50x35 Zoom Use 0% Tactical HUD 1 Map Filters NONE Filters NONE Steam 1 RUN: 8b6b187d-1c29-4cba-90fa-8b05558846da